[Event "1st Bangalore GM-Open-A 2024"]
[Site "Bangalore"]
[Date "2024.01.19"]
[Round "3.3"]
[White "Aronyak Ghosh"]
[Black "Laxman, R.R."]
[Result "1/2-1/2"]
[ECO "A07"]
[WhiteElo "2541"]
[BlackElo "2338"]
[Annotator "TA"]
[PlyCount "163"]
[EventDate "2024.01.20"]
[EventType "swiss"]
[EventCountry "IND"]
[SourceTitle "playchess.com"]
[Source "ChessBase"]
[SourceQuality "1"]
[TimeControl "5400+30"]

{[%evp 9,163,19,20,31,26,21,16,23,31,32,37,12,0,-21,-20,-28,-14,-67,-59,-69,-71,-77,-77,-81,-66,-86,-59,-80,-72,-105,-35,-21,-34,-14,-9,-11,8,10,168,24,235,22,29,39,27,0,0,0,0,0,0,-108,-82,-141,-142,-134,-121,-122,-114,-134,-112,-167,-147,-147,-147,-145,-131,-137,-135,-325,-197,-190,-113,-194,-183,-187,-180,-197,-195,-188,-178,-188,-188,-181,-181,-181,0,-181,-144,-143,-93,-93,-93,-100,-93,-93,-93,-120,-120,-120,-120,-120,-80,-120,-79,-120,-72,-76,0,-148,-148,-148,-148,-231,-148,-148,-93,-133,-182,-326,-319,-319,-307,-236,-60,-60,-60,-63,-60,-63,-63,-291,-60,-60,-60,-60,-59,-70,-69,-72,-72,-72,-72,-72,0,0,0,0,0,0,0,-8,0,-8,-8,-8]} 1. Nf3 {[%emt 0:00:33]} Nf6 {[%emt 0:00:15]} 2. g3 {[%emt 0:00:38]} d5 {[%emt 0:01:58]} 3. Bg2 {[%emt 0:00:27]} c6 {[%emt 0:01:14]} 4. O-O {[%emt 0:00:39]} Bg4 {[%emt 0:00:53]} 5. h3 {[%emt 0:00:48]} Bh5 {[%emt 0:00:19] [#]} 6. c4 $1 {[%emt 0:00:29] A07: Réti Opening: New York and Capablanca Systems.} e6 {[%emt 0:00:11]} 7. d4 {[%emt 0:00:31]} Nbd7 {[%emt 0:00:19]} 8. cxd5 {[%emt 0:00:24]} cxd5 {[%emt 0:03:12]} 9. Nc3 {[%emt 0:09:36]} Bd6 {[%emt 0:00:43] [#]} 10. Nh4 $146 {[%emt 0:03:18]} ({Predecessor:} 10. Qb3 Qb6 11. e4 Nxe4 12. Nxe4 dxe4 13. Ng5 Qxb3 14. axb3 Nf6 15. Nxe4 Nxe4 16. Bxe4 {½-½ Berkes,F (2651)-Pranav,V (2530) ROM-chT Oradea 2022 (8.3)}) 10... O-O {[%emt 0:01:40]} 11. f4 {[%emt 0:03:05]} Rc8 {[%emt 0:06:16]} 12. Qd3 {[%emt 0:08:05]} Bb4 {[%emt 0:25:57]} 13. f5 {[%emt 0:16:23]} (13. g4 $11 Bxc3 14. bxc3) 13... Bxc3 $15 {[%emt 0:00:34]} 14. bxc3 {[%emt 0:00:28]} exf5 {[%emt 0:07:41]} 15. Nxf5 {[%emt 0:03:05]} Re8 {[%emt 0:00:21]} 16. g4 {[%emt 0:02:16]} Bg6 {[%emt 0:00:08]} 17. Bg5 {[%emt 0:00:55]} Qa5 {[%emt 0:00:46]} 18. Bd2 {[%emt 0:02:17][%cal Oc3c4]} Ne4 {[%emt 0:17:55]} 19. Be1 {[%emt 0:04:16][%cal Oc3c4]} Qa3 {[%emt 0:02:20]} (19... Nxc3 $2 20. Rc1 $18) (19... Qd8 $17) 20. c4 {[%emt 0:06:49][%mdl 64] Discovered Attack} Qb2 {[%emt 0:00:28]} 21. Rb1 {[%emt 0:00:21]} Qxa2 {[%emt 0:00:06]} 22. cxd5 {[%emt 0:01:39]} Qxd5 {[%emt 0:08:51]} 23. Bh4 {[%emt 0:04:50] This pair of bishops is nice.} Qe6 $2 {[%emt 0:10:28]} (23... Bxf5 $1 $11 24. Rxf5 Qe6) 24. Rxb7 {[%emt 0:10:33]} (24. d5 $1 $18 {[%cal Rd5e6]} Qe5 25. Qxe4 (25. Rxb7 $2 Nec5 $19) 25... Qxe4 26. Bxe4 Rxe4 27. Rxb7 Bxf5 28. Rxf5) 24... Ndf6 $2 {[%emt 0:02:57]} (24... Bxf5 $11 {and Black is okay.} 25. Rxf5 (25. gxf5 Qh6 $11) 25... Rc1+ 26. Rf1 Rxf1+ 27. Kxf1 Ndf6) 25. Rxa7 $2 {[%emt 0:00:58]} (25. Bxe4 $1 $18 Qxe4 26. Qxe4 {[%mdl 64] Remove Defender} (26. Rxa7 $2 Bxf5 {[%mdl 64] Pin} 27. Qxe4 Bxe4 $19) 26... Nxe4 27. Ne7+ (27. Rxa7 Bxf5 28. Rxf5 f6 $11) 27... Rxe7 28. Rxe7) 25... Bxf5 $11 {[%emt 0:00:33]} 26. gxf5 {[%emt 0:01:50]} Qb6 {[%emt 0:00:14]} 27. Ra6 {[%emt 0:00:22]} Qb2 {[%emt 0:00:11]} 28. Bxf6 {[%emt 0:03:12]} Nxf6 {[%emt 0:00:09]} 29. Bf3 {[%emt 0:01:17]} Rc3 {[%emt 0:00:35]} 30. Qd1 {[%emt 0:01:17]} (30. Rb1 $11 {keeps the balance.} Rc1+ 31. Rxc1 Qxc1+ 32. Kg2) 30... Rce3 {[%emt 0:00:33]} 31. Qa4 {[%emt 0:06:16]} ({White should try} 31. Rf2) 31... Qb8 $17 {[%emt 0:00:56]} 32. Rf2 {[%emt 0:00:38]} Qb1+ {[%emt 0:01:36]} 33. Kg2 {[%emt 0:01:03]} Qxf5 {[%emt 0:00:14]} 34. Ra8 {[%emt 0:00:08]} Qg5+ {[%emt 0:00:50]} 35. Kf1 {[%emt 0:00:34]} (35. Bg4 $17 {was called for.}) 35... Rxa8 {[%emt 0:01:06]} 36. Qxa8+ {[%emt 0:00:06]} Re8 {[%emt 0:00:01]} 37. Qc6 {[%emt 0:00:57] Wards off Qc1+} Qe3 {[%emt 0:00:46]} 38. Qd6 {[%emt 0:01:25]} h6 {[%emt 0:02:03][%cal Of6h5]} 39. d5 $2 {[%emt 0:01:22]} (39. Kg2 $17 {might work better.}) 39... Rc8 {[%emt 0:00:44]} 40. Kg2 {[%emt 0:00:34]} Rc1 {[%emt 0:00:45]} (40... Ne4 $1 $19 41. Bxe4 Qxe4+ 42. Kh2 Rc1) 41. Qg3 {[%emt 0:00:47] [#]} (41. Rf1 $17 {was worth a try.}) 41... Nxd5 $1 {[%emt 0:00:25][%mdl 512]} 42. Kh2 {[%emt 0:01:20]} (42. Bxd5 $2 {perishes.} Rg1+ 43. Kxg1 Qxg3+ 44. Bg2 Qe3 $19) (42. Qb8+ $2 Kh7 43. Bxd5 Qg5+ 44. Qg3 Rg1+ 45. Kxg1 Qxg3+ 46. Bg2 Qe3 $19) 42... Nf6 {[%emt 0:01:30][%cal Of6h5]} ({Stronger than} 42... Nf4 43. Ba8 Qxg3+ 44. Kxg3 Nh5+ 45. Kf3 $17) 43. Rg2 {[%emt 0:00:26][%csl Gg2][%cal Rg3g7]} g5 {[%emt 0:00:19]} 44. h4 {[%emt 0:00:31][%cal Rh4g5]} Rc5 {[%emt 0:00:08]} 45. hxg5 {[%emt 0:00:15]} hxg5 {[%emt 0:00:12]} 46. Qf2 {[%emt 0:00:57]} Qe5+ {[%emt 0:00:24]} 47. Qg3 {[%emt 0:00:12]} Qe3 {[%emt 0:00:27]} 48. Qf2 $1 {[%emt 0:00:03]} Qc3 {[%emt 0:00:36][%cal Of6e4]} 49. Qh4 {[%emt 0:00:23] Against Ne4} Qa5 {[%emt 0:00:53]} (49... Qd2 $142 50. Qg3 Kg7) 50. Qh6 {[%emt 0:00:32]} Qc7+ {[%emt 0:00:24]} 51. Rg3 {[%emt 0:00:06]} Qd6 {[%emt 0:01:30][%cal Of6g4] ( -> ...Ng4+!)} 52. Kg2 {[%emt 0:00:48] [#] Intending Rh3 and mate.} Ne4 $1 {[%emt 0:00:02][%mdl 64] Discovered Attack} 53. Rh3 {[%emt 0:00:05][%csl Gh3][%cal Rh6h8]} (53. Qxd6 Nxd6) 53... Qxh6 {[%emt 0:00:14]} 54. Rxh6 {[%emt 0:00:02][%mdl 4096] Endgame KRB-KRN} Kg7 {[%emt 0:00:18] Dodges Bxe4} 55. Rb6 {[%emt 0:00:08]} Nf6 {[%emt 0:00:07]} 56. Kf2 {[%emt 0:00:08]} Re5 {[%emt 0:00:06]} 57. Bb7 {[%emt 0:00:27]} Ng4+ {[%emt 0:00:34]} ({Better is} 57... g4 58. Ba6 Ne4+ 59. Kg2 f6) 58. Kf3 {[%emt 0:00:13]} Nf6 {[%emt 0:00:15]} (58... Nh2+ $17 59. Kf2 Rf5+ 60. Kg2 (60. Kg3 Nf1+ 61. Kg4 Ne3+ 62. Kh5 Kf8 $17) 60... Ng4) 59. e4 {[%emt 0:00:20]} (59. Kf2 $1 $11) 59... Rc5 {[%emt 0:00:14]} 60. Ke3 {[%emt 0:00:25]} Nd7 {[%emt 0:00:29]} 61. Ra6 {[%emt 0:00:34]} (61. Rb1 $17) 61... Rc7 {[%emt 0:00:49]} 62. Bd5 {[%emt 0:00:12]} f6 {[%emt 0:00:10]} (62... Ne5 $142 $1 {aiming for ...Rc1.} 63. Ra1 Kg6 64. Ra6+ f6) 63. Ra8 {[%emt 0:00:14]} Ne5 {[%emt 0:01:06] Hoping for ...g4.} 64. Be6 {[%emt 0:00:59]} (64. Rg8+ $142 Kh7 65. Rf8) 64... Rc3+ $19 {[%emt 0:00:54]} 65. Ke2 {[%emt 0:00:05]} Rc2+ {[%emt 0:00:44]} 66. Ke3 {[%emt 0:00:10]} Rc7 $2 {[%emt 0:00:22]} (66... g4 $1 $19 67. Rg8+ Kh7) 67. Rg8+ $15 {[%emt 0:00:19]} Kh7 {[%emt 0:00:09]} 68. Rf8 {[%emt 0:00:15]} Rc6 {[%emt 0:01:01]} 69. Re8 {[%emt 0:00:52]} Rc3+ {[%emt 0:00:55]} 70. Ke2 $2 {[%emt 0:00:15] [#]} (70. Kd2 $1 $15 Rc6 71. Ke3) 70... Ra3 $2 {[%emt 0:01:51]} (70... g4 $1 $19 {...g3 would be deadly.} 71. Kf2 Kg6 72. Rg8+ Kh5) 71. Bf5+ {[%emt 0:01:19]} Kg7 {[%emt 0:00:07] White must now prevent ...g4.} 72. Re7+ {[%emt 0:00:03]} Kf8 {[%emt 0:00:06]} 73. Rb7 {[%emt 0:00:09]} g4 {[%emt 0:00:45]} 74. Kf2 {[%emt 0:00:43] [#]} Nd3+ $1 {[%emt 0:00:15]} 75. Kg1 {[%emt 0:01:18]} g3 {[%emt 0:01:11]} 76. e5 {[%emt 0:00:09]} fxe5 {[%emt 0:01:03]} (76... Nf4 $17 77. Rb8+ Kg7 78. Rb7+ Kh6 79. exf6 Ra2) 77. Bxd3 $11 {[%emt 0:00:21] The position is equal.} Rxd3 $17 {[%emt 0:00:01] KR-KR} 78. Kg2 {[%emt 0:00:11]} Ke8 {[%emt 0:00:13]} 79. Rb5 {[%emt 0:00:21]} Re3 {[%emt 0:00:04]} 80. Rb7 {[%emt 0:00:02]} Kd8 {[%emt 0:00:04]} 81. Rg7 {[%emt 0:00:26]} Rd3 {[%emt 0:00:10]} 82. Rxg3 {[%emt 0:01:20] What a bad dream for Black.   Weighted Error Value: White=0.31/Black=0.28 (precise)} 1/2-1/2

[Event "1st Bangalore GM-Open-A 2024"]
[Site "Bangalore"]
[Date "2024.01.19"]
[Round "3.4"]
[White "Pranav Anand"]
[Black "Nguyen, Duc Hoa"]
[Result "1-0"]
[ECO "B76"]
[WhiteElo "2513"]
[BlackElo "2322"]
[Annotator "TA"]
[PlyCount "107"]
[EventDate "2024.01.20"]
[EventType "swiss"]
[EventCountry "IND"]
[SourceTitle "playchess.com"]
[Source "ChessBase"]
[SourceQuality "1"]
[TimeControl "5400+30"]

{[%evp 26,107,38,27,31,28,23,47,43,29,31,10,9,0,33,29,24,0,33,31,41,0,0,0,0,0,-7,-4,-12,-14,47,0,0,-12,-12,-12,-8,-10,-24,-14,26,39,15,0,0,0,0,0,1,-17,0,0,136,118,1956,1850,999,1306,29952,29941,2037,615,544,563,29962,29963,2486,606,477,439,395,263,257,249,258,256,235,241,29977,29978,29985,29986,29986,29987]} 1. e4 {[%emt 0:00:03]} c5 {[%emt 0:00:16]} 2. Nf3 {[%emt 0:00:05]} d6 {[%emt 0:00:11]} 3. d4 {[%emt 0:00:04]} cxd4 {[%emt 0:00:05]} 4. Nxd4 {[%emt 0:00:00]} Nf6 {[%emt 0:00:00]} 5. Nc3 {[%emt 0:00:00]} g6 {[%emt 0:00:00]} 6. f3 {[%emt 0:00:00]} Bg7 {[%emt 0:00:00]} 7. Be3 {[%emt 0:00:02]} Nc6 {[%emt 0:00:08]} 8. Qd2 {[%emt 0:00:15]} O-O {[%emt 0:00:09]} 9. O-O-O {[%emt 0:00:05]} d5 {[%emt 0:00:26]} 10. exd5 {[%emt 0:00:08]} Nxd5 {[%emt 0:00:07]} 11. Nxc6 {[%emt 0:00:04]} bxc6 {[%emt 0:00:05]} 12. Bd4 {[%emt 0:00:03]} Bxd4 {[%emt 0:04:37]} 13. Qxd4 {[%emt 0:00:12]} Qb6 {[%emt 0:00:30]} 14. Na4 {[%emt 0:00:11]} Qa5 {[%emt 0:01:01][%cal Oe7e5] B76: Sicilian Dragon: Yugoslav Attack, 9 g4 and 9 0-0-0.} 15. b3 {[%emt 0:00:15]} Be6 {[%emt 0:00:37]} 16. Qe5 {[%emt 0:07:17]} Qb4 {[%emt 0:03:08] White is slightly better.} 17. h4 {[%emt 0:03:08]} Rad8 {[%emt 0:09:17] [#]} 18. Bd3 $146 {[%emt 0:14:41]} ({Predecessor:} 18. Re1 Bf5 19. Bc4 Nb6 20. Qc3 Qa3+ 21. Nb2 Qxa2 22. Nd3 Nxc4 23. Qxc4 Bxd3 24. cxd3 Qxg2 25. h5 Rd5 26. hxg6 hxg6 27. Qc3 e5 28. Rh4 Qg5+ {0-1 Eggleston,D (2404)-Zwahr,P (2326) Douglas PokerStars op 2015 (5)}) 18... Rd6 {[%emt 0:05:40]} 19. g3 {[%emt 0:05:55]} (19. Kb2 {with more complications.} Rb8 20. Nc3 a5 21. Nxd5 Rxd5 22. Qc3) 19... f6 {[%emt 0:06:56]} 20. Qb2 {[%emt 0:01:44]} Rfd8 {[%emt 0:01:56]} 21. Rde1 {[%emt 0:08:20]} Bf5 {[%emt 0:02:59]} 22. a3 {[%emt 0:03:34]} Qa5 {[%emt 0:00:46]} 23. Bc4 {[%emt 0:02:40]} (23. Qd4 $14) 23... Kf8 $11 {[%emt 0:00:56][%cal Od5e3]} 24. Kb1 {[%emt 0:07:47]} Nb6 {[%emt 0:09:52]} 25. Nxb6 {[%emt 0:00:31] [#] Hoping for Na4.} Rd2 $1 {[%emt 0:00:15]} 26. Rc1 {[%emt 0:09:44] Black must now prevent Na4.} Qxb6 {[%emt 0:05:45]} 27. g4 {[%emt 0:00:46]} Bc8 {[%emt 0:00:17]} (27... Bd3 $11) 28. h5 {[%emt 0:01:30]} (28. Qc3 $1 $14 {was preferrable.}) 28... g5 $1 {[%emt 0:04:46]} 29. h6 {[%emt 0:02:00]} Ba6 {[%emt 0:07:13]} 30. Bxa6 {[%emt 0:06:11]} Qxa6 {[%emt 0:00:09]} 31. f4 {[%emt 0:01:40]} gxf4 {[%emt 0:03:08]} 32. g5 $1 {[%emt 0:01:03]} c5 {[%emt 0:00:26][%cal Bc6c5,Bc5c4][%mdl 32]} (32... fxg5 $2 33. Qh8+ Kf7 34. Qxh7+ Ke8 35. Qg7 Qxa3 36. h7 $18) 33. Qc3 {[%emt 0:03:49]} R2d5 {[%emt 0:01:23]} (33... Qxa3 $2 34. g6 Qb4 35. gxh7 $18) 34. Rcg1 {[%emt 0:01:37]} Qe6 {[%emt 0:02:11] Strongly threatening ...Qe5.} (34... fxg5 $2 35. Qh8+ Kf7 36. Qxh7+ Kf8 37. Qh8+ Kf7 38. Qg7+ Ke8 39. Qg8+ Kd7 40. Qxd5+ $18) 35. gxf6 {[%emt 0:05:25]} Qxf6 {[%emt 0:00:12]} 36. Qf3 {[%emt 0:00:21]} c4 $1 {[%emt 0:03:55]} 37. Qg4 {[%emt 0:01:58][%csl Gg1][%cal Rg4g8]} (37. b4 {simplifies} a5 38. Rg4 axb4 39. Rxf4 Rd1+ 40. Rxd1 Rxd1+ 41. Qxd1 Qxf4 42. Qd8+) 37... Kf7 {[%emt 0:00:10] Inhibits Qg8+. ...cxb3 would be deadly.} 38. b4 {[%emt 0:04:50]} a5 {[%emt 0:00:40]} (38... Rg5 $11 39. Qe2 (39. Qxg5 Rd1+ 40. Rxd1 Qxg5 $17) 39... Rd4) 39. Rh5 $16 {[%emt 0:00:47] White threatens Rxd5 and mate. Really sharp!} Rxh5 {[%emt 0:03:50][%mdl 8192] This costs Black the game.} (39... Re5 $16) 40. Qxh5+ {[%emt 0:00:03][%mdl 4096] Endgame KQR-KQR} Kf8 {[%emt 0:00:05]} 41. Qxa5 {[%emt 0:00:58]} e6 {[%emt 0:15:58]} 42. Qc5+ {[%emt 0:01:44]} Ke8 {[%emt 0:01:00]} 43. Qc6+ {[%emt 0:01:12]} (43. Rg8+ $142 Kd7 44. Qa7+ Kc8 45. Qxh7) 43... Kf8 $18 {[%emt 0:00:20]} 44. Qc7 {[%emt 0:00:40]} (44. Qxc4 Qd4 45. Qxd4 (45. Qxe6 $2 Qxg1+ 46. Kb2 Qg5 $19) 45... Rxd4 $16) 44... Rd5 {[%emt 0:00:08]} 45. Qxh7 {[%emt 0:02:41][%csl Gh7][%cal Rg1g8]} (45. Qxc4 Qd4 46. Qf1 Rd7 $18) 45... Rg5 {[%emt 0:00:04]} 46. Rf1 {[%emt 0:00:40]} (46. Rxg5 $142 Qxg5 47. Qh8+ Kf7 48. h7) 46... Rf5 {[%emt 0:01:24]} 47. Qb7 {[%emt 0:02:20]} Qxh6 {[%emt 0:00:13]} 48. Rh1 {[%emt 0:00:06]} Qg7 {[%emt 0:01:11]} 49. Qc8+ {[%emt 0:00:47]} Kf7 {[%emt 0:00:01] [#]} 50. Rd1 $1 {[%emt 0:01:51] And now Rd7+ would win.} ({Don't take} 50. Qxc4 $6 f3 $16) ({But not} 50. Re1 Qf6 51. Rh1 (51. Qxc4 f3 $16) 51... Qg7 $18) 50... Kf6 {[%emt 0:01:35]} 51. Qxc4 {[%emt 0:00:15] Threatens to win with Qc3+.} f3 $2 {[%emt 0:00:35]} (51... Qf8 $18 52. Qc3+ Kg6) 52. Qc3+ {[%emt 0:00:09][%mdl 64] Skewer. White mates.} e5 {[%emt 0:00:09]} 53. Qc6+ {[%emt 0:00:11]} Kf7 {[%emt 0:00:53]} 54. Qd7+ {[%emt 0:00:17] Weighted Error Value: White=0.30/Black=0.46} 1-0

[Event "1st Bangalore GM-Open-A 2024"]
[Site "Bangalore"]
[Date "2024.01.19"]
[Round "3.5"]
[White "Aswath, S."]
[Black "Mitrabha, Guha"]
[Result "1/2-1/2"]
[ECO "E06"]
[WhiteElo "2369"]
[BlackElo "2504"]
[Annotator "TA"]
[PlyCount "69"]
[EventDate "2024.01.20"]
[EventType "swiss"]
[EventCountry "IND"]
[SourceTitle "playchess.com"]
[Source "ChessBase"]
[SourceQuality "1"]
[TimeControl "5400+30"]

{[%evp 11,69,20,22,29,22,19,22,0,12,22,18,18,16,0,40,34,40,50,33,24,28,9,18,13,12,-5,15,27,24,0,0,0,12,14,20,21,7,10,21,8,8,4,4,3,35,33,92,93,79,27,27,27,27,33,30,30,31,27,27,0]} 1. d4 {[%emt 0:04:43]} Nf6 {[%emt 0:00:15]} 2. c4 {[%emt 0:00:10]} e6 {[%emt 0:00:07]} 3. g3 {[%emt 0:01:19]} d5 {[%emt 0:00:08]} 4. Bg2 {[%emt 0:00:08]} Be7 {[%emt 0:00:08]} 5. Nf3 {[%emt 0:00:08]} O-O {[%emt 0:00:04]} 6. O-O {[%emt 0:00:08]} a5 {[%emt 0:00:12]} 7. Nc3 {[%emt 0:01:44] E06: Closed Catalan: Early deviations.} c6 {[%emt 0:00:19]} 8. b3 {[%emt 0:02:47]} b6 {[%emt 0:00:10]} 9. Ne5 {[%emt 0:00:52] The position is equal.} Nfd7 {[%emt 0:03:08] [#]} 10. e4 $146 {[%emt 0:04:35][%cal Re4d5]} ({Predecessor:} 10. Nd3 Ba6 11. Nb2 b5 12. e4 bxc4 13. bxc4 Nb6 14. Qg4 Kh8 15. exd5 cxd5 16. Bf4 Nxc4 {0-1 Shevchenko,K (2684)-Deac,B (2700) Warsaw Superbet Blitz 2023 (10)}) 10... Nxe5 {[%emt 0:03:55]} 11. exd5 {[%emt 0:02:55]} ({But not} 11. dxe5 dxc4 12. bxc4 Ba6 $15) 11... Bb4 {[%emt 0:08:21]} 12. Bb2 {[%emt 0:10:08]} (12. Na4 $5 {[%cal Rd4e5]}) 12... exd5 {[%emt 0:13:48]} 13. dxe5 {[%emt 0:01:52][%cal Rc4d5]} dxc4 {[%emt 0:00:24]} 14. Qxd8 {[%emt 0:00:56]} Rxd8 {[%emt 0:00:03]} 15. Na4 {[%emt 0:01:55]} (15. Rfd1 $5 {[%cal Rd1d8]} Rf8 16. bxc4 $14) 15... Ra6 {[%emt 0:05:11] [#] White must now prevent ...b5.} ({Don't take} 15... b5 16. Nb6 Ra6 17. Rad1 $16) 16. Rfd1 {[%emt 0:02:49]} Re8 {[%emt 0:09:03]} 17. bxc4 {[%emt 0:07:47]} b5 {[%emt 0:14:15][%cal Bb6b5,Bb5b4][%mdl 32]} 18. Nc3 {[%emt 0:07:11]} Bxc3 {[%emt 0:00:54]} 19. Bxc3 {[%emt 0:00:14]} b4 $1 {[%emt 0:00:14]} 20. Bb2 {[%emt 0:00:39][%cal Bc3b2,Bb2c1,Bc1e3,Be3c5][%mdl 32]} Be6 {[%emt 0:00:21]} 21. c5 {[%emt 0:07:48]} a4 {[%emt 0:01:58] Black is weak on the dark squares} 22. Rd4 {[%emt 0:04:59]} a3 {[%emt 0:02:19]} 23. Bc1 {[%emt 0:00:23]} Nd7 {[%emt 0:01:20]} 24. Rxb4 {[%emt 0:01:29]} Nxc5 {[%emt 0:00:20]} 25. Bf1 {[%emt 0:00:49] Against Nd3. This pair of bishops is nice.} Raa8 {[%emt 0:00:29]} 26. Be3 {[%emt 0:01:11]} Nd7 {[%emt 0:04:52]} 27. f4 {[%emt 0:01:10]} Reb8 {[%emt 0:07:45]} 28. Rxb8+ {[%emt 0:00:28]} Nxb8 {[%emt 0:00:19]} ({Black should play} 28... Rxb8 $14 29. Bg2 f6) 29. Rd1 $16 {[%emt 0:01:21][%cal Rd1d8] [#]} Kf8 {[%emt 0:08:11]} 30. Rd3 {[%emt 0:02:34]} (30. Rd8+ $16 Ke7 31. Rg8 (31. Rd2 Nd7 $14)) 30... Bxa2 $11 {[%emt 0:01:47]} 31. Bc5+ {[%emt 0:00:26]} Ke8 {[%emt 0:00:08]} 32. Rxa3 {[%emt 0:00:57]} Rxa3 {[%emt 0:00:24]} 33. Bxa3 {[%emt 0:00:02]} Nd7 {[%emt 0:00:36]} 34. Kf2 {[%emt 0:02:45]} f6 {[%emt 0:00:27]} 35. Bg2 {[%emt 0:01:32] Weighted Error Value: White=0.06 (flawless) /Black=0.08 (flawless)} 1/2-1/2

[Event "1st Bangalore GM-Open-A 2024"]
[Site "Bangalore"]
[Date "2024.01.19"]
[Round "3.6"]
[White "Fedorov, Alexei"]
[Black "Omidi, Arya"]
[Result "1-0"]
[ECO "B21"]
[WhiteElo "2457"]
[BlackElo "2301"]
[Annotator "RC"]
[PlyCount "77"]
[EventDate "2024.01.20"]
[EventType "swiss"]
[EventCountry "IND"]
[SourceTitle "playchess.com"]
[Source "ChessBase"]
[SourceQuality "1"]
[TimeControl "5400+30"]

1. e4 {[%emt 0:00:03]} c5 {[%emt 0:01:03]} 2. Be2 {[%emt 0:00:10]} Nc6 {[%emt 0:00:14]} 3. f4 {[%emt 0:00:12]} e6 {[%emt 0:00:17]} 4. Nf3 {[%emt 0:00:15]} d5 {[%emt 0:00:06]} 5. d3 {[%emt 0:00:03]} Bd6 {[%emt 0:00:20]} 6. O-O {[%emt 0:00:38]} Nge7 {[%emt 0:00:09]} 7. c3 {[%emt 0:00:10]} O-O {[%emt 0:00:10]} 8. g3 {[%emt 0:01:08]} Bd7 {[%emt 0:05:26]} 9. Be3 {[%emt 0:00:19]} f6 {[%emt 0:02:23]} 10. Nbd2 {[%emt 0:00:30]} b6 {[%emt 0:05:51]} 11. Bf2 {[%emt 0:02:11]} Kh8 {[%emt 0:00:54]} 12. a3 {[%emt 0:00:37]} a5 {[%emt 0:11:36]} 13. a4 {[%emt 0:00:04]} Bc7 {[%emt 0:03:03]} 14. Qc2 {[%emt 0:05:27]} e5 {[%emt 0:02:08]} 15. f5 {[%emt 0:02:14]} c4 {[%emt 0:02:18]} 16. Nh4 {[%emt 0:08:40]} cxd3 {[%emt 0:01:23]} 17. Bxd3 {[%emt 0:00:03]} Rc8 {[%emt 0:12:39]} 18. exd5 {[%emt 0:11:49]} Nxd5 {[%emt 0:00:04]} 19. Be4 {[%emt 0:01:44]} Nce7 {[%emt 0:03:42]} 20. Rfd1 {[%emt 0:00:41]} Bc6 {[%emt 0:00:58]} 21. Nc4 {[%emt 0:00:33]} Qe8 {[%emt 0:01:34]} 22. Qe2 {[%emt 0:04:00]} Qf7 {[%emt 0:04:34]} 23. Rd2 {[%emt 0:09:13]} Rcd8 {[%emt 0:01:25]} 24. Rad1 {[%emt 0:02:04]} Kg8 {[%emt 0:11:52]} 25. Bc2 {[%emt 0:03:27]} g5 {[%emt 0:06:48]} 26. fxg6 {[%emt 0:02:43]} hxg6 {[%emt 0:00:03]} 27. Na3 {[%emt 0:06:11]} g5 {[%emt 0:07:18]} 28. Ng2 {[%emt 0:00:34]} Qe6 {[%emt 0:06:14]} 29. Nb5 {[%emt 0:00:47]} Qh3 {[%emt 0:00:19]} 30. Be4 {[%emt 0:06:43]} f5 {[%emt 0:04:11]} 31. Bxd5+ {[%emt 0:02:06]} Rxd5 {[%emt 0:01:04]} 32. Qc4 {[%emt 0:03:55]} Kh8 {[%emt 0:03:50]} 33. Rxd5 {[%emt 0:00:09]} Bxd5 {[%emt 0:00:05]} 34. Rxd5 {[%emt 0:00:08]} Nxd5 {[%emt 0:00:03]} 35. Qxd5 {[%emt 0:00:53]} Qh7 {[%emt 0:02:06]} 36. Nxc7 {[%emt 0:01:15]} Qxc7 {[%emt 0:00:02]} 37. Qe6 {[%emt 0:00:17]} Kh7 {[%emt 0:00:48]} 38. Ne3 {[%emt 0:02:08]} Qf7 {[%emt 0:01:56]} 39. Qxe5 {[%emt 0:00:13]} 1-0

[Event "1st Bangalore GM-Open-A 2024"]
[Site "Bangalore"]
[Date "2024.01.19"]
[Round "3.7"]
[White "Dushyant Sharma"]
[Black "Neelash Saha"]
[Result "0-1"]
[ECO "B15"]
[WhiteElo "2357"]
[BlackElo "2446"]
[Annotator "RC"]
[PlyCount "54"]
[EventDate "2024.01.20"]
[EventType "swiss"]
[EventCountry "IND"]
[SourceTitle "playchess.com"]
[Source "ChessBase"]
[SourceQuality "1"]
[TimeControl "5400+30"]

1. e4 {[%emt 0:00:03]} c6 {[%emt 0:00:20]} 2. d4 {[%emt 0:00:09]} d5 {[%emt 0:00:05]} 3. Nc3 {[%emt 0:02:04]} dxe4 {[%emt 0:00:12]} 4. Nxe4 {[%emt 0:00:06]} Nf6 {[%emt 0:00:03]} 5. Nxf6+ {[%emt 0:00:09]} exf6 {[%emt 0:00:03]} 6. c3 {[%emt 0:00:08]} Bd6 {[%emt 0:00:15]} 7. Bd3 {[%emt 0:00:07]} O-O {[%emt 0:00:07]} 8. Qc2 {[%emt 0:00:03]} Re8+ {[%emt 0:00:28]} 9. Ne2 {[%emt 0:00:08]} h5 {[%emt 0:00:03]} 10. O-O {[%emt 0:00:12]} h4 {[%emt 0:00:05]} 11. h3 {[%emt 0:00:04]} Nd7 {[%emt 0:02:01]} 12. Bd2 {[%emt 0:00:47]} Nf8 {[%emt 0:02:53]} 13. Rae1 {[%emt 0:00:49]} Bc7 {[%emt 0:03:23]} 14. f4 {[%emt 0:01:06]} Qd6 {[%emt 0:03:19]} 15. c4 {[%emt 0:10:09]} Ne6 {[%emt 0:08:31]} 16. Bc3 {[%emt 0:02:36]} b5 {[%emt 0:02:06]} 17. b3 {[%emt 0:02:28]} Ba6 {[%emt 0:03:31]} 18. Kh1 {[%emt 0:11:24]} b4 {[%emt 0:08:40]} 19. Bb2 {[%emt 0:01:13]} Nxf4 {[%emt 0:05:32]} 20. c5 {[%emt 0:17:02]} Bxd3 {[%emt 0:00:08]} 21. cxd6 {[%emt 0:00:52]} Bxc2 {[%emt 0:00:05]} 22. Nxf4 {[%emt 0:05:20]} Bxd6 {[%emt 0:00:17]} 23. Rc1 {[%emt 0:00:17]} Be4 {[%emt 0:00:07]} 24. Rf2 {[%emt 0:02:55]} Kh7 {[%emt 0:00:49]} 25. Kg1 {[%emt 0:00:09]} f5 {[%emt 0:01:14]} 26. Re1 {[%emt 0:02:00]} g5 {[%emt 0:00:45]} 27. Ne2 {[%emt 0:00:38]} Bd3 {[%emt 0:00:18]} 0-1